[Event "Titled Tuesday Blitz February 28 Late 2023"]
[White "Sanchez, Robert"]
[Black "Kovacs, Klara"]
[WhiteFideId "2034360"]
[BlackFideId "733210"]
[WhiteElo "2431"]
[BlackElo "2179"]
[Result "0-1"]
[Round "06"]
[TimeControl "180+2"]
[Date "2023.02.28"]
[WhiteClock "0:01:10"]
[BlackClock "0:01:35"]

1. e4 {[%clk 0:03:00]}  e6 {[%clk 0:02:58]} 2. d4 {[%clk 0:03:00]}  d5 {[%clk 0:02:59]} 3. Nc3 {[%clk 0:03:01]}  Nf6 {[%clk 0:02:53]} 4. Bg5 {[%clk 0:02:59]}  Be7 {[%clk 0:02:52]} 5. e5 {[%clk 0:02:59]}  Nfd7 {[%clk 0:02:49]} 6. h4 {[%clk 0:02:59]}  h6 {[%clk 0:02:48]} 7. Bxe7 {[%clk 0:02:53]}  Qxe7 {[%clk 0:02:49]} 8. Qg4 {[%clk 0:02:50]}  Kf8 {[%clk 0:02:47]} 9. Rh3 {[%clk 0:02:39]}  a6 {[%clk 0:02:41]} 10. Rf3 {[%clk 0:02:34]}  c5 {[%clk 0:02:38]} 11. Nh3 {[%clk 0:02:25]}  cxd4 {[%clk 0:02:38]} 12. Qxd4 {[%clk 0:02:20]}  Nc6 {[%clk 0:02:37]} 13. Qd2 {[%clk 0:02:18]}  Ndxe5 {[%clk 0:02:34]} 14. Rg3 {[%clk 0:02:17]}  Qxh4 {[%clk 0:02:32]} 15. O-O-O {[%clk 0:02:16]}  Bd7 {[%clk 0:02:32]} 16. Kb1 {[%clk 0:02:15]}  Rc8 {[%clk 0:02:30]} 17. Be2 {[%clk 0:02:13]}  Nc4 {[%clk 0:02:28]} 18. Bxc4 {[%clk 0:02:11]}  Qxc4 {[%clk 0:02:28]} 19. Ne2 {[%clk 0:02:02]}  Nb4 {[%clk 0:02:22]} 20. Nc3 {[%clk 0:01:57]}  g6 {[%clk 0:01:54]} 21. a3 {[%clk 0:01:57]}  Nc6 {[%clk 0:01:54]} 22. Rf3 {[%clk 0:01:51]}  Kg7 {[%clk 0:01:54]} 23. Rf4 {[%clk 0:01:46]}  Qc5 {[%clk 0:01:55]} 24. Ne4 {[%clk 0:01:39]}  dxe4 {[%clk 0:01:54]} 25. Qxd7 {[%clk 0:01:39]}  Ne5 {[%clk 0:01:54]} 26. Qd2 {[%clk 0:01:34]}  Rhd8 {[%clk 0:01:54]} 27. Qc1 {[%clk 0:01:32]}  Rxd1 {[%clk 0:01:44]} 28. Qxd1 {[%clk 0:01:33]}  e3 {[%clk 0:01:44]} 29. c3 {[%clk 0:01:18]}  exf2 {[%clk 0:01:43]} 30. Rxf2 {[%clk 0:01:14]}  Nc4 {[%clk 0:01:38]} 31. Qf3 {[%clk 0:01:10]}  Qf5+ {[%clk 0:01:35]} 0-1


[Site "https://www.chess.com"]

[Event "Titled Tuesday Blitz February 28 Late 2023"]
[White "Pino Perez, Lazaro"]
[Black "Gatterer, Florian"]
[WhiteFideId "3517055"]
[BlackFideId "811688"]
[WhiteElo "2170"]
[BlackElo "2221"]
[Result "0-1"]
[Round "06"]
[TimeControl "180+2"]
[Date "2023.02.28"]
[WhiteClock "0:00:04"]
[BlackClock "0:00:05"]

1. d4 {[%clk 0:03:00]}  Nf6 {[%clk 0:02:58]} 2. Bf4 {[%clk 0:03:00]}  c5 {[%clk 0:02:57]} 3. d5 {[%clk 0:02:57]}  d6 {[%clk 0:02:55]} 4. Nc3 {[%clk 0:02:55]}  g6 {[%clk 0:02:56]} 5. e4 {[%clk 0:02:48]}  Bg7 {[%clk 0:02:55]} 6. Nf3 {[%clk 0:02:44]}  O-O {[%clk 0:02:54]} 7. a4 {[%clk 0:02:38]}  Bg4 {[%clk 0:02:51]} 8. Be2 {[%clk 0:02:31]}  Nbd7 {[%clk 0:02:28]} 9. O-O {[%clk 0:02:20]}  a6 {[%clk 0:02:24]} 10. Nd2 {[%clk 0:02:10]}  Bxe2 {[%clk 0:02:21]} 11. Qxe2 {[%clk 0:02:11]}  e6 {[%clk 0:02:16]} 12. dxe6 {[%clk 0:02:01]}  fxe6 {[%clk 0:02:16]} 13. Bxd6 {[%clk 0:02:00]}  Re8 {[%clk 0:02:14]} 14. Rad1 {[%clk 0:01:49]}  b5 {[%clk 0:02:09]} 15. axb5 {[%clk 0:01:43]}  axb5 {[%clk 0:02:09]} 16. Nxb5 {[%clk 0:01:39]}  Nb6 {[%clk 0:01:44]} 17. Bc7 {[%clk 0:01:26]}  Qd7 {[%clk 0:01:45]} 18. Bxb6 {[%clk 0:01:23]}  Rab8 {[%clk 0:01:45]} 19. Nc7 {[%clk 0:01:14]}  Rec8 {[%clk 0:01:40]} 20. Nc4 {[%clk 0:01:13]}  Qc6 {[%clk 0:01:34]} 21. Rd6 {[%clk 0:01:09]}  Qb7 {[%clk 0:01:31]} 22. e5 {[%clk 0:01:02]}  Nd5 {[%clk 0:01:13]} 23. Na5 {[%clk 0:00:45]}  Nf4 {[%clk 0:01:01]} 24. Qg4 {[%clk 0:00:25]}  Qe4 {[%clk 0:00:59]} 25. Kh1 {[%clk 0:00:18]}  Rxb6 {[%clk 0:00:56]} 26. Rxb6 {[%clk 0:00:18]}  Rxc7 {[%clk 0:00:56]} 27. Rxe6 {[%clk 0:00:18]}  Rf7 {[%clk 0:00:50]} 28. Nc6 {[%clk 0:00:16]}  Bf8 {[%clk 0:00:40]} 29. Rd1 {[%clk 0:00:15]}  h5 {[%clk 0:00:31]} 30. Qf3 {[%clk 0:00:14]}  Qxf3 {[%clk 0:00:29]} 31. gxf3 {[%clk 0:00:15]}  Nxe6 {[%clk 0:00:30]} 32. Nd8 {[%clk 0:00:12]}  Nxd8 {[%clk 0:00:29]} 33. Rxd8 {[%clk 0:00:13]}  Kg7 {[%clk 0:00:27]} 34. Kg2 {[%clk 0:00:11]}  Re7 {[%clk 0:00:25]} 35. f4 {[%clk 0:00:11]}  Kf7 {[%clk 0:00:26]} 36. Kf3 {[%clk 0:00:10]}  Bh6 {[%clk 0:00:25]} 37. Rd6 {[%clk 0:00:09]}  Re6 {[%clk 0:00:20]} 38. Rd7+ {[%clk 0:00:09]}  Re7 {[%clk 0:00:20]} 39. Rd5 {[%clk 0:00:10]}  Rc7 {[%clk 0:00:19]} 40. Rd6 {[%clk 0:00:10]}  Bf8 {[%clk 0:00:18]} 41. Rf6+ {[%clk 0:00:09]}  Kg7 {[%clk 0:00:17]} 42. Ke4 {[%clk 0:00:09]}  Be7 {[%clk 0:00:17]} 43. Re6 {[%clk 0:00:09]}  Kf7 {[%clk 0:00:17]} 44. Ra6 {[%clk 0:00:09]}  Rb7 {[%clk 0:00:17]} 45. b3 {[%clk 0:00:09]}  c4 {[%clk 0:00:17]} 46. bxc4 {[%clk 0:00:08]}  Rc7 {[%clk 0:00:17]} 47. Kd5 {[%clk 0:00:08]}  Rc5+ {[%clk 0:00:17]} 48. Kd4 {[%clk 0:00:08]}  Rc7 {[%clk 0:00:17]} 49. Ra5 {[%clk 0:00:05]}  Rc6 {[%clk 0:00:15]} 50. Rd5 {[%clk 0:00:05]}  Ke6 {[%clk 0:00:14]} 51. Ra5 {[%clk 0:00:04]}  Bf8 {[%clk 0:00:13]} 52. Ra8 {[%clk 0:00:04]}  Bc5+ {[%clk 0:00:13]} 53. Ke4 {[%clk 0:00:02]}  Be7 {[%clk 0:00:13]} 54. Ra7 {[%clk 0:00:02]}  Rxc4+ {[%clk 0:00:12]} 55. Kd3 {[%clk 0:00:03]}  Rc6 {[%clk 0:00:12]} 56. Ra5 {[%clk 0:00:02]}  Bc5 {[%clk 0:00:11]} 57. Ke4 {[%clk 0:00:02]}  Be7 {[%clk 0:00:10]} 58. Ra8 {[%clk 0:00:03]}  Rxc2 {[%clk 0:00:08]} 59. Rg8 {[%clk 0:00:03]}  Kf7 {[%clk 0:00:08]} 60. Ra8 {[%clk 0:00:03]}  Rxf2 {[%clk 0:00:08]} 61. Ra6 {[%clk 0:00:02]}  Re2+ {[%clk 0:00:08]} 62. Kf3 {[%clk 0:00:01]}  Rxh2 {[%clk 0:00:07]} 63. Ke4 {[%clk 0:00:02]}  Re2+ {[%clk 0:00:07]} 64. Kf3 {[%clk 0:00:02]}  Rd2 {[%clk 0:00:07]} 65. Ke3 {[%clk 0:00:02]}  Rb2 {[%clk 0:00:06]} 66. Ke4 {[%clk 0:00:03]}  Rb4+ {[%clk 0:00:06]} 67. Kf3 {[%clk 0:00:03]}  h4 {[%clk 0:00:06]} 68. Ra7 {[%clk 0:00:04]}  Rb3+ {[%clk 0:00:05]} 69. Kg4 {[%clk 0:00:04]}  Rg3# {[%clk 0:00:05]} 0-1


[Site "https://www.chess.com"]

[Event "Titled Tuesday Blitz February 28 Late 2023"]
[White "Estrada Nieto, Julian"]
[Black "Torres Dominguez, David"]
[WhiteFideId "5101018"]
[BlackFideId "2220857"]
[WhiteElo "2176"]
[BlackElo "1999"]
[Result "0-1"]
[Round "06"]
[TimeControl "180+2"]
[Date "2023.02.28"]
[WhiteClock "0:00:01"]
[BlackClock "0:00:18"]

1. e4 {[%clk 0:03:00]}  e5 {[%clk 0:02:57]} 2. Nf3 {[%clk 0:03:01]}  Nc6 {[%clk 0:02:56]} 3. Bb5 {[%clk 0:03:01]}  Nge7 {[%clk 0:02:55]} 4. Nc3 {[%clk 0:03:00]}  g6 {[%clk 0:02:55]} 5. d4 {[%clk 0:02:59]}  exd4 {[%clk 0:02:55]} 6. Nd5 {[%clk 0:02:59]}  Bg7 {[%clk 0:02:55]} 7. Bg5 {[%clk 0:02:59]}  h6 {[%clk 0:02:55]} 8. Bf6 {[%clk 0:02:59]}  Bxf6 {[%clk 0:02:55]} 9. Nxf6+ {[%clk 0:03:00]}  Kf8 {[%clk 0:02:55]} 10. Qd2 {[%clk 0:02:58]}  d5 {[%clk 0:02:52]} 11. exd5 {[%clk 0:02:44]}  Nxd5 {[%clk 0:02:41]} 12. Nxd5 {[%clk 0:02:44]}  Qxd5 {[%clk 0:02:37]} 13. Bxc6 {[%clk 0:02:44]}  Qxc6 {[%clk 0:02:16]} 14. Qxd4 {[%clk 0:02:44]}  Qe6+ {[%clk 0:02:11]} 15. Kf1 {[%clk 0:02:31]}  Kg8 {[%clk 0:02:09]} 16. Re1 {[%clk 0:02:30]}  Qc6 {[%clk 0:02:08]} 17. Ne5 {[%clk 0:02:03]}  Qf6 {[%clk 0:02:03]} 18. Nf3 {[%clk 0:01:45]}  Kg7 {[%clk 0:02:01]} 19. Re7 {[%clk 0:01:30]}  Be6 {[%clk 0:01:52]} 20. Rxc7 {[%clk 0:01:22]}  Rad8 {[%clk 0:01:39]} 21. Qxf6+ {[%clk 0:01:20]}  Kxf6 {[%clk 0:01:38]} 22. Ke2 {[%clk 0:01:03]}  Rhe8 {[%clk 0:01:34]} 23. Ke3 {[%clk 0:00:48]}  g5 {[%clk 0:01:22]} 24. Rc5 {[%clk 0:00:28]}  Bc4+ {[%clk 0:01:07]} 25. Ne5 {[%clk 0:00:26]}  Rxe5+ {[%clk 0:01:07]} 26. Rxe5 {[%clk 0:00:25]}  Kxe5 {[%clk 0:01:07]} 27. b3 {[%clk 0:00:25]}  Be6 {[%clk 0:01:07]} 28. h4 {[%clk 0:00:25]}  Kf6 {[%clk 0:01:06]} 29. hxg5+ {[%clk 0:00:25]}  hxg5 {[%clk 0:01:06]} 30. g3 {[%clk 0:00:17]}  g4 {[%clk 0:01:06]} 31. Rh5 {[%clk 0:00:17]}  Kg6 {[%clk 0:01:05]} 32. Rc5 {[%clk 0:00:16]}  Rd7 {[%clk 0:01:04]} 33. a4 {[%clk 0:00:15]}  b6 {[%clk 0:01:01]} 34. Rc6 {[%clk 0:00:14]}  Kg7 {[%clk 0:01:00]} 35. a5 {[%clk 0:00:14]}  bxa5 {[%clk 0:00:59]} 36. Rc5 {[%clk 0:00:14]}  Rd5 {[%clk 0:00:59]} 37. Rc7 {[%clk 0:00:13]}  Rd7 {[%clk 0:00:58]} 38. Rc5 {[%clk 0:00:12]}  a4 {[%clk 0:00:49]} 39. bxa4 {[%clk 0:00:12]}  Rb7 {[%clk 0:00:49]} 40. Ra5 {[%clk 0:00:11]}  Kf6 {[%clk 0:00:42]} 41. Kd4 {[%clk 0:00:11]}  Rb4+ {[%clk 0:00:39]} 42. Kc3 {[%clk 0:00:09]}  Rc4+ {[%clk 0:00:39]} 43. Kd3 {[%clk 0:00:08]}  Rc7 {[%clk 0:00:37]} 44. Ra6 {[%clk 0:00:05]}  Kg5 {[%clk 0:00:35]} 45. Ra5+ {[%clk 0:00:05]}  Kg6 {[%clk 0:00:33]} 46. c3 {[%clk 0:00:05]}  Bf5+ {[%clk 0:00:32]} 47. Kd4 {[%clk 0:00:05]}  Be6 {[%clk 0:00:31]} 48. Ra6 {[%clk 0:00:04]}  Rc4+ {[%clk 0:00:30]} 49. Kd3 {[%clk 0:00:04]}  Rc7 {[%clk 0:00:29]} 50. Kd4 {[%clk 0:00:04]}  Rd7+ {[%clk 0:00:27]} 51. Ke4 {[%clk 0:00:04]}  Kg5 {[%clk 0:00:22]} 52. Ra5+ {[%clk 0:00:04]}  Kf6 {[%clk 0:00:21]} 53. Ra6 {[%clk 0:00:04]}  Rc7 {[%clk 0:00:21]} 54. Kd4 {[%clk 0:00:04]}  Ke7 {[%clk 0:00:20]} 55. Ra5 {[%clk 0:00:02]}  Kd7 {[%clk 0:00:20]} 56. Ra6 {[%clk 0:00:02]}  Kc8 {[%clk 0:00:20]} 57. Kd3 {[%clk 0:00:01]}  Bc4+ {[%clk 0:00:18]} 0-1


[Site "https://www.chess.com"]

[Event "Titled Tuesday Blitz February 28 Late 2023"]
[White "Bilan, Danila"]
[Black "Lalanne, Pablo"]
[WhiteFideId "24161918"]
[BlackFideId "112151"]
[WhiteElo "2182"]
[BlackElo "2120"]
[Result "1-0"]
[Round "06"]
[TimeControl "180+2"]
[Date "2023.02.28"]
[WhiteClock "0:00:10"]
[BlackClock "0:00:37"]

1. d4 {[%clk 0:03:00]}  Nf6 {[%clk 0:02:59]} 2. Nf3 {[%clk 0:02:51]}  e6 {[%clk 0:02:59]} 3. g3 {[%clk 0:02:47]}  d5 {[%clk 0:02:56]} 4. Bg2 {[%clk 0:02:45]}  c5 {[%clk 0:02:56]} 5. O-O {[%clk 0:02:45]}  Nc6 {[%clk 0:02:56]} 6. c4 {[%clk 0:02:46]}  Be7 {[%clk 0:02:54]} 7. Nc3 {[%clk 0:02:45]}  O-O {[%clk 0:02:53]} 8. cxd5 {[%clk 0:02:43]}  exd5 {[%clk 0:02:54]} 9. dxc5 {[%clk 0:02:43]}  Bxc5 {[%clk 0:02:53]} 10. Bg5 {[%clk 0:02:44]}  d4 {[%clk 0:02:53]} 11. Na4 {[%clk 0:02:42]}  Be7 {[%clk 0:02:52]} 12. Rc1 {[%clk 0:02:43]}  h6 {[%clk 0:02:49]} 13. Bxf6 {[%clk 0:02:37]}  Bxf6 {[%clk 0:02:48]} 14. Nc5 {[%clk 0:02:38]}  Re8 {[%clk 0:02:38]} 15. Qb3 {[%clk 0:02:20]}  Rxe2 {[%clk 0:02:20]} 16. Nxb7 {[%clk 0:02:18]}  Bxb7 {[%clk 0:02:15]} 17. Qxb7 {[%clk 0:02:16]}  Na5 {[%clk 0:02:09]} 18. Qb5 {[%clk 0:01:38]}  d3 {[%clk 0:02:02]} 19. b4 {[%clk 0:01:20]}  Rxa2 {[%clk 0:01:39]} 20. bxa5 {[%clk 0:01:10]}  Rxa5 {[%clk 0:01:38]} 21. Qc4 {[%clk 0:00:58]}  Rb8 {[%clk 0:01:22]} 22. Rfd1 {[%clk 0:00:53]}  Ra3 {[%clk 0:01:20]} 23. Bf1 {[%clk 0:00:28]}  Rbb3 {[%clk 0:01:10]} 24. Qc8 {[%clk 0:00:22]}  Qxc8 {[%clk 0:01:03]} 25. Rxc8+ {[%clk 0:00:21]}  Kh7 {[%clk 0:01:03]} 26. Ne1 {[%clk 0:00:18]}  d2 {[%clk 0:00:48]} 27. Nc2 {[%clk 0:00:14]}  Ra5 {[%clk 0:00:40]} 28. Rxd2 {[%clk 0:00:13]}  Rb1 {[%clk 0:00:38]} 29. Kg2 {[%clk 0:00:13]}  g6 {[%clk 0:00:38]} 30. Rd7 {[%clk 0:00:11]}  Kg7 {[%clk 0:00:38]} 31. Bc4 {[%clk 0:00:11]}  g5 {[%clk 0:00:37]} 32. Rxf7+ {[%clk 0:00:10]}  Kg6 {[%clk 0:00:37]} 33. Rc6 {[%clk 0:00:10]} 1-0


[Site "https://www.chess.com"]

[Event "Titled Tuesday Blitz February 28 Late 2023"]
[White "Nery Junior, Jose Antonio"]
[Black "Floresvillar Gonzalez, Luis Migu"]
[WhiteFideId "2104822"]
[BlackFideId "5100542"]
[WhiteElo "2197"]
[BlackElo "2040"]
[Result "1-0"]
[Round "06"]
[TimeControl "180+2"]
[Date "2023.02.28"]
[WhiteClock "0:00:29"]
[BlackClock "0:00:10"]

1. e4 {[%clk 0:02:56]}  d6 {[%clk 0:02:58]} 2. d4 {[%clk 0:02:55]}  Nf6 {[%clk 0:02:58]} 3. Nc3 {[%clk 0:02:56]}  g6 {[%clk 0:02:58]} 4. f3 {[%clk 0:02:55]}  Bg7 {[%clk 0:02:57]} 5. Be3 {[%clk 0:02:52]}  b6 {[%clk 0:02:55]} 6. Qd2 {[%clk 0:02:51]}  c5 {[%clk 0:02:54]} 7. O-O-O {[%clk 0:02:45]}  cxd4 {[%clk 0:02:53]} 8. Bxd4 {[%clk 0:02:45]}  Nc6 {[%clk 0:02:52]} 9. Bb5 {[%clk 0:02:43]}  Bd7 {[%clk 0:02:51]} 10. Be3 {[%clk 0:02:39]}  a6 {[%clk 0:02:47]} 11. Bxc6 {[%clk 0:02:35]}  Bxc6 {[%clk 0:02:47]} 12. Nge2 {[%clk 0:02:33]}  Rc8 {[%clk 0:02:43]} 13. h4 {[%clk 0:02:26]}  h5 {[%clk 0:02:42]} 14. Nd4 {[%clk 0:02:24]}  Qc7 {[%clk 0:02:36]} 15. Kb1 {[%clk 0:02:22]}  b5 {[%clk 0:02:29]} 16. a3 {[%clk 0:02:21]}  Bb7 {[%clk 0:02:19]} 17. Bg5 {[%clk 0:01:58]}  Nh7 {[%clk 0:02:05]} 18. Be3 {[%clk 0:01:53]}  Nf6 {[%clk 0:02:04]} 19. Rhg1 {[%clk 0:01:51]}  Qc4 {[%clk 0:01:56]} 20. Nb3 {[%clk 0:01:48]}  b4 {[%clk 0:01:50]} 21. axb4 {[%clk 0:01:45]}  Qxb4 {[%clk 0:01:50]} 22. Nd5 {[%clk 0:01:41]}  Nxd5 {[%clk 0:01:49]} 23. exd5 {[%clk 0:01:40]}  Qxd2 {[%clk 0:01:43]} 24. Rxd2 {[%clk 0:01:41]}  O-O {[%clk 0:01:37]} 25. g4 {[%clk 0:01:39]}  hxg4 {[%clk 0:01:36]} 26. fxg4 {[%clk 0:01:40]}  Bf6 {[%clk 0:01:33]} 27. g5 {[%clk 0:01:33]}  Be5 {[%clk 0:01:29]} 28. h5 {[%clk 0:01:33]}  gxh5 {[%clk 0:01:28]} 29. Rh1 {[%clk 0:01:33]}  Kg7 {[%clk 0:01:28]} 30. Rxh5 {[%clk 0:01:33]}  Rh8 {[%clk 0:01:29]} 31. Rxh8 {[%clk 0:01:33]}  Rxh8 {[%clk 0:01:26]} 32. Na5 {[%clk 0:01:34]}  Rh1+ {[%clk 0:01:15]} 33. Ka2 {[%clk 0:01:34]}  Bc8 {[%clk 0:01:07]} 34. Nc6 {[%clk 0:01:22]}  e6 {[%clk 0:00:58]} 35. Nxe5 {[%clk 0:01:17]}  dxe5 {[%clk 0:00:58]} 36. d6 {[%clk 0:01:08]}  Bd7 {[%clk 0:00:58]} 37. c4 {[%clk 0:01:00]}  Rc1 {[%clk 0:00:52]} 38. c5 {[%clk 0:00:59]}  Re1 {[%clk 0:00:42]} 39. Bf2 {[%clk 0:00:55]}  Re4 {[%clk 0:00:41]} 40. Ka3 {[%clk 0:00:43]}  Kg6 {[%clk 0:00:36]} 41. b4 {[%clk 0:00:37]}  Kxg5 {[%clk 0:00:34]} 42. c6 {[%clk 0:00:23]}  Bxc6 {[%clk 0:00:33]} 43. d7 {[%clk 0:00:24]}  Bxd7 {[%clk 0:00:33]} 44. Rxd7 {[%clk 0:00:25]}  f5 {[%clk 0:00:26]} 45. Rg7+ {[%clk 0:00:21]}  Kf6 {[%clk 0:00:24]} 46. Ra7 {[%clk 0:00:22]}  Re2 {[%clk 0:00:22]} 47. Bh4+ {[%clk 0:00:21]}  Kg6 {[%clk 0:00:20]} 48. Rxa6 {[%clk 0:00:22]}  Rh2 {[%clk 0:00:14]} 49. Bd8 {[%clk 0:00:22]}  Rh1 {[%clk 0:00:13]} 50. Rxe6+ {[%clk 0:00:22]}  Kh5 {[%clk 0:00:08]} 51. Rxe5 {[%clk 0:00:23]}  Kg4 {[%clk 0:00:08]} 52. Bc7 {[%clk 0:00:23]}  f4 {[%clk 0:00:07]} 53. Re4 {[%clk 0:00:23]}  Rf1 {[%clk 0:00:06]} 54. Rxf4+ {[%clk 0:00:24]}  Rxf4 {[%clk 0:00:05]} 55. Bxf4 {[%clk 0:00:24]}  Kxf4 {[%clk 0:00:06]} 56. Ka4 {[%clk 0:00:25]}  Ke5 {[%clk 0:00:06]} 57. Ka5 {[%clk 0:00:24]}  Kd6 {[%clk 0:00:07]} 58. Ka6 {[%clk 0:00:24]}  Kc7 {[%clk 0:00:07]} 59. Ka7 {[%clk 0:00:25]}  Kc6 {[%clk 0:00:07]} 60. Ka6 {[%clk 0:00:25]}  Kc7 {[%clk 0:00:08]} 61. b5 {[%clk 0:00:25]}  Kb8 {[%clk 0:00:08]} 62. Kb6 {[%clk 0:00:26]}  Ka8 {[%clk 0:00:08]} 63. Kc7 {[%clk 0:00:27]}  Ka7 {[%clk 0:00:09]} 64. b6+ {[%clk 0:00:27]}  Ka8 {[%clk 0:00:09]} 65. b7+ {[%clk 0:00:28]}  Ka7 {[%clk 0:00:10]} 66. b8=Q+ {[%clk 0:00:29]}  Ka6 {[%clk 0:00:10]} 67. Qb4 {[%clk 0:00:29]} 1-0


[Site "https://www.chess.com"]

[Event "Titled Tuesday Blitz February 28 Late 2023"]
[White "Hoffmann, Asa"]
[Black "Sabar, Ethmane Daouda"]
[WhiteFideId "2001470"]
[BlackFideId "19600097"]
[WhiteElo "2117"]
[BlackElo "1950"]
[Result "1-0"]
[Round "06"]
[TimeControl "180+2"]
[Date "2023.02.28"]
[WhiteClock "0:01:06"]
[BlackClock "0:00:01"]

1. d4 {[%clk 0:02:57]}  d5 {[%clk 0:02:59]} 2. Bg5 {[%clk 0:02:55]}  c6 {[%clk 0:02:56]} 3. e3 {[%clk 0:02:55]}  Qb6 {[%clk 0:02:54]} 4. b3 {[%clk 0:02:54]}  g6 {[%clk 0:02:43]} 5. Bd3 {[%clk 0:02:53]}  Bg7 {[%clk 0:02:43]} 6. Nf3 {[%clk 0:02:53]}  Bg4 {[%clk 0:02:42]} 7. h3 {[%clk 0:02:52]}  Bxf3 {[%clk 0:02:41]} 8. Qxf3 {[%clk 0:02:52]}  Nd7 {[%clk 0:02:41]} 9. Qg3 {[%clk 0:02:48]}  e5 {[%clk 0:02:20]} 10. c3 {[%clk 0:02:45]}  exd4 {[%clk 0:02:05]} 11. exd4 {[%clk 0:02:44]}  Ngf6 {[%clk 0:02:01]} 12. Nd2 {[%clk 0:02:41]}  O-O {[%clk 0:02:00]} 13. O-O {[%clk 0:02:41]}  Rfe8 {[%clk 0:01:53]} 14. Rfe1 {[%clk 0:02:40]}  Nf8 {[%clk 0:01:38]} 15. Qf3 {[%clk 0:02:34]}  N6d7 {[%clk 0:01:18]} 16. b4 {[%clk 0:02:20]}  a5 {[%clk 0:01:14]} 17. a3 {[%clk 0:02:17]}  axb4 {[%clk 0:01:14]} 18. axb4 {[%clk 0:02:17]}  Rxa1 {[%clk 0:01:10]} 19. Rxa1 {[%clk 0:02:14]}  Ne6 {[%clk 0:01:08]} 20. Bh4 {[%clk 0:02:10]}  Bh6 {[%clk 0:01:02]} 21. Nf1 {[%clk 0:02:08]}  Nf4 {[%clk 0:00:57]} 22. Bg3 {[%clk 0:02:01]}  Nxd3 {[%clk 0:00:52]} 23. Qxd3 {[%clk 0:02:00]}  Nf6 {[%clk 0:00:51]} 24. Ne3 {[%clk 0:01:58]}  Ne4 {[%clk 0:00:49]} 25. Ng4 {[%clk 0:01:55]}  Bg7 {[%clk 0:00:45]} 26. Re1 {[%clk 0:01:53]}  Qd8 {[%clk 0:00:38]} 27. Be5 {[%clk 0:01:45]}  f6 {[%clk 0:00:37]} 28. Bh2 {[%clk 0:01:44]}  h5 {[%clk 0:00:32]} 29. Ne3 {[%clk 0:01:43]}  f5 {[%clk 0:00:32]} 30. f3 {[%clk 0:01:41]}  Nf6 {[%clk 0:00:27]} 31. Nc2 {[%clk 0:01:36]}  Rxe1+ {[%clk 0:00:20]} 32. Nxe1 {[%clk 0:01:36]}  Qe7 {[%clk 0:00:20]} 33. Kf1 {[%clk 0:01:35]}  h4 {[%clk 0:00:16]} 34. Qe2 {[%clk 0:01:34]}  Kf7 {[%clk 0:00:14]} 35. Nd3 {[%clk 0:01:34]}  Qxe2+ {[%clk 0:00:13]} 36. Kxe2 {[%clk 0:01:34]}  g5 {[%clk 0:00:13]} 37. Be5 {[%clk 0:01:28]}  Ne8 {[%clk 0:00:09]} 38. f4 {[%clk 0:01:21]}  g4 {[%clk 0:00:07]} 39. Nc5 {[%clk 0:01:16]}  b6 {[%clk 0:00:06]} 40. Na4 {[%clk 0:01:14]}  b5 {[%clk 0:00:06]} 41. Nc5 {[%clk 0:01:13]}  Bxe5 {[%clk 0:00:06]} 42. dxe5 {[%clk 0:01:11]}  Nc7 {[%clk 0:00:05]} 43. Nb3 {[%clk 0:01:11]}  Ke6 {[%clk 0:00:05]} 44. Nd4+ {[%clk 0:01:10]}  Kd7 {[%clk 0:00:05]} 45. Nxf5 {[%clk 0:01:10]}  Ne6 {[%clk 0:00:05]} 46. Ke3 {[%clk 0:01:09]}  gxh3 {[%clk 0:00:04]} 47. gxh3 {[%clk 0:01:09]}  c5 {[%clk 0:00:02]} 48. Nxh4 {[%clk 0:01:08]}  c4 {[%clk 0:00:02]} 49. Nf3 {[%clk 0:01:07]}  Ng7 {[%clk 0:00:01]} 50. Nd4 {[%clk 0:01:07]}  Ke7 {[%clk 0:00:01]} 51. f5 {[%clk 0:01:07]}  Nh5 {[%clk 0:00:01]} 52. Kf3 {[%clk 0:01:06]} 1-0


[Site "https://www.chess.com"]

[Event "Titled Tuesday Blitz February 28 Late 2023"]
[White "Davidson, Kevin"]
[Black "Fernandez Hernandez, Gerardo"]
[WhiteFideId "2056810"]
[BlackFideId "2207400"]
[WhiteElo "2151"]
[BlackElo "2205"]
[Result "1-0"]
[Round "06"]
[TimeControl "180+2"]
[Date "2023.02.28"]
[WhiteClock "0:00:11"]
[BlackClock "0:00:02"]

1. e4 {[%clk 0:03:00]}  e6 {[%clk 0:02:59]} 2. d4 {[%clk 0:03:01]}  d5 {[%clk 0:03:00]} 3. Nc3 {[%clk 0:03:01]}  Nc6 {[%clk 0:03:00]} 4. Nf3 {[%clk 0:03:00]}  Nf6 {[%clk 0:03:00]} 5. Bg5 {[%clk 0:02:52]}  Be7 {[%clk 0:02:59]} 6. e5 {[%clk 0:02:50]}  Ne4 {[%clk 0:02:56]} 7. Bxe7 {[%clk 0:02:48]}  Qxe7 {[%clk 0:02:57]} 8. Bd3 {[%clk 0:02:47]}  Qb4 {[%clk 0:02:58]} 9. O-O {[%clk 0:02:47]}  Nxc3 {[%clk 0:02:58]} 10. bxc3 {[%clk 0:02:47]}  Qxc3 {[%clk 0:02:58]} 11. Rb1 {[%clk 0:02:44]}  Qa3 {[%clk 0:02:57]} 12. Qd2 {[%clk 0:02:31]}  h6 {[%clk 0:02:47]} 13. h4 {[%clk 0:02:26]}  Qe7 {[%clk 0:02:38]} 14. h5 {[%clk 0:02:22]}  b6 {[%clk 0:02:20]} 15. a4 {[%clk 0:01:42]}  Bd7 {[%clk 0:02:12]} 16. Ba6 {[%clk 0:01:20]}  Na5 {[%clk 0:01:53]} 17. Rb4 {[%clk 0:01:07]}  Nc6 {[%clk 0:01:25]} 18. Rb3 {[%clk 0:01:00]}  Na5 {[%clk 0:01:23]} 19. Rb4 {[%clk 0:00:59]}  O-O {[%clk 0:01:21]} 20. Rfb1 {[%clk 0:00:55]}  Nc6 {[%clk 0:00:46]} 21. R4b3 {[%clk 0:00:54]}  Na5 {[%clk 0:00:45]} 22. Rb4 {[%clk 0:00:51]}  Nc6 {[%clk 0:00:45]} 23. R4b2 {[%clk 0:00:45]}  Na5 {[%clk 0:00:45]} 24. Ra2 {[%clk 0:00:38]}  Rab8 {[%clk 0:00:40]} 25. Bd3 {[%clk 0:00:36]}  c5 {[%clk 0:00:34]} 26. c3 {[%clk 0:00:31]}  Rfc8 {[%clk 0:00:23]} 27. Raa1 {[%clk 0:00:26]}  cxd4 {[%clk 0:00:14]} 28. cxd4 {[%clk 0:00:27]}  Rc7 {[%clk 0:00:08]} 29. Qf4 {[%clk 0:00:18]}  Rbc8 {[%clk 0:00:05]} 30. Rc1 {[%clk 0:00:14]}  Nb3 {[%clk 0:00:03]} 31. Rxc7 {[%clk 0:00:13]}  Rxc7 {[%clk 0:00:04]} 32. Rb1 {[%clk 0:00:11]}  Bxa4 {[%clk 0:00:02]} 33. g4 {[%clk 0:00:11]} 1-0


[Site "https://www.chess.com"]